bitfinex/quotes_BTCUSD_20250208
["timestamp","ask_amount","ask_price","bid_price","bid_amount"]
[1739025756784,0.11150365,96097.0,96096.0,0.17326546]
[1739025756968,0.11750365,96097.0,96096.0,0.01717246]
[1739025757403,0.10850365,96097.0,96096.0,0.01717246]
[1739025757550,0.12650365,96097.0,96096.0,0.01917246]
[1739025761362,0.024,96097.0,96096.0,0.01917246]
[1739025761521,0.024,96097.0,96096.0,0.25776546]
[1739025761883,0.024,96097.0,96096.0,0.30526546]
[1739025762286,0.015,96097.0,96096.0,0.30426546]
[1739025762490,0.015,96097.0,96096.0,0.30726546]
[1739025763298,0.156049,96124.0,96102.0,0.156084]
[1739025763502,0.156049,96124.0,96102.0,0.238584]
[1739025763710,0.156049,96124.0,96102.0,0.25563824]
[1739025763936,0.156049,96124.0,96102.0,0.30313824]
[1739025764692,0.156049,96124.0,96102.0,0.30413824]
[1739025765581,0.01042785,96120.0,96102.0,0.30413824]
[1739025770185,0.08419722,96125.0,96102.0,0.30413824]
[1739025770186,0.0009874,96125.0,96102.0,0.30413824]
[1739025770387,0.0009874,96125.0,96102.0,0.63103824]
[1739025770599,0.01039522,96132.0,96102.0,0.78103824]
[1739025771399,0.16643022,96132.0,96102.0,0.78003824]
[1739025771602,0.01039522,96132.0,96102.0,0.78003824]
[1739025771967,0.0764471,96130.0,96102.0,0.78003824]
[1739025772170,0.00122428,96103.0,96102.0,0.78903824]
[1739025772676,0.00022428,96103.0,96102.0,0.78003824]
[1739025772919,0.00222428,96103.0,96102.0,0.79803824]
[1739025773239,0.00122428,96103.0,96102.0,0.78003824]
[1739025773437,0.00122428,96103.0,96102.0,0.78803824]
[1739025773637,0.00222428,96103.0,96102.0,0.79703824]
[1739025773883,0.00222428,96103.0,96102.0,0.78903824]
[1739025774088,0.00322428,96103.0,96102.0,0.79803824]
[1739025774476,0.00222428,96103.0,96102.0,0.78903824]
[1739025774676,0.00322428,96103.0,96102.0,0.79703824]
[1739025775686,0.00222428,96103.0,96102.0,0.78803824]
[1739025775912,0.00222428,96103.0,96102.0,0.79703824]
[1739025776255,0.00322428,96103.0,96102.0,0.89954189]
[1739025776485,0.00322428,96103.0,96102.0,0.91354189]
[1739025776687,0.00022428,96103.0,96102.0,0.93792557]
[1739025776890,0.00122428,96103.0,96102.0,0.94692557]
[1739025777039,0.00222428,96103.0,96102.0,0.95492557]
[1739025777200,0.00222428,96103.0,96102.0,0.92254189]
[1739025777400,0.00222428,96103.0,96102.0,0.95491864]
[1739025778210,0.00222428,96103.0,96102.0,0.92254189]
[1739025779964,0.00222428,96103.0,96102.0,0.92264869]
[1739025780201,0.00222428,96103.0,96102.0,0.95501858]
[1739025780756,0.00222428,96103.0,96102.0,0.92264869]
[1739025781366,0.00222428,96103.0,96102.0,0.95501949]
[1739025781588,0.00222428,96103.0,96102.0,0.92264869]
[1739025782596,2.8e-07,96103.0,96102.0,1.39701266]
[1739025782974,2.8e-07,96103.0,96102.0,1.38801266]
[1739025783457,0.08419172,96135.0,96134.0,0.156032]
[1739025783862,0.00022428,96136.0,96134.0,0.17016179]
[1739025784622,0.00026965,96136.0,96134.0,0.17016179]
[1739025785074,0.00026965,96136.0,96134.0,0.17316179]
[1739025785301,0.00026965,96136.0,96134.0,0.17016179]
[1739025786001,0.00026965,96136.0,96134.0,0.17216179]
[1739025786771,0.00026965,96136.0,96134.0,0.17416179]
[1739025787316,0.25853365,96135.0,96134.0,0.01812979]
[1739025787449,0.14900365,96135.0,96134.0,0.004]
[1739025788109,0.14900365,96135.0,96134.0,0.01812979]
[1739025788309,0.14900365,96135.0,96134.0,0.004]
[1739025788624,0.14900365,96135.0,96134.0,0.01609776]
[1739025788825,0.14900365,96135.0,96128.0,0.156041]
[1739025789051,0.156048,96124.0,96115.0,0.156061]
[1739025789259,0.27252144,96130.0,96129.0,0.01409776]
[1739025789458,0.156047,96125.0,96117.0,0.156059]
[1739025789600,0.208049,96131.0,96120.0,0.156054]
[1739025790267,0.156042,96128.0,96121.0,0.0141019]
[1739025790424,0.10250365,96127.0,96121.0,0.0141019]
[1739025790627,0.25854765,96127.0,96121.0,0.1701539]
[1739025790853,0.25854765,96127.0,96121.0,0.0141019]
[1739025791026,0.25854765,96127.0,96121.0,0.1701549]
[1739025791223,0.25854765,96127.0,96121.0,0.156053]
[1739025791409,0.25854765,96127.0,96122.0,0.0141019]
[1739025792698,0.10250365,96127.0,96126.0,0.156045]
[1739025793454,0.10250365,96127.0,96126.0,0.17016519]
[1739025793893,0.10750365,96127.0,96126.0,0.17016519]
[1739025795090,0.10250365,96127.0,96126.0,0.17016519]
[1739025795488,0.10350365,96127.0,96126.0,0.17016519]
[1739025795908,0.10250365,96127.0,96126.0,0.17016519]
[1739025797867,0.10250365,96127.0,96126.0,0.01412019]
[1739025798219,0.10250365,96127.0,96125.0,0.156045]
[1739025798456,0.10250365,96127.0,96126.0,0.01411778]
[1739025799009,0.10250365,96127.0,96126.0,0.17016278]
[1739025801051,0.10250365,96127.0,96126.0,0.17216278]
[1739025801452,0.10250365,96127.0,96126.0,0.17016278]
[1739025801654,0.10250365,96127.0,96126.0,0.17216278]
[1739025802065,0.10250365,96127.0,96126.0,0.17516278]
[1739025802483,0.10250365,96127.0,96126.0,0.17216278]
[1739025802863,0.00022428,96135.0,96134.0,0.156032]
[1739025803072,0.10272793,96135.0,96134.0,0.17017356]
[1739025803478,0.10272793,96135.0,96134.0,0.01414156]
[1739025803833,0.10272793,96135.0,96134.0,0.17017356]
[1739025804463,0.10272793,96135.0,96134.0,0.17117356]
[1739025804674,0.10272793,96135.0,96134.0,0.17017356]
[1739025806463,0.10372793,96135.0,96134.0,0.17017356]
[1739025808450,0.10272793,96135.0,96134.0,0.17017356]
[1739025808896,0.10372793,96135.0,96134.0,0.17017356]
[1739025811960,0.10272793,96135.0,96134.0,0.17017356]
[1739025812391,0.10272793,96135.0,96134.0,0.17317356]
[1739025812718,0.10272793,96135.0,96134.0,0.17017356]
[1739025813038,0.10272793,96135.0,96134.0,0.17117356]
[1739025813458,0.10272793,96135.0,96134.0,0.17217356]
[1739025814510,0.10272793,96135.0,96134.0,0.01614156]
[1739025815094,0.50477189,96135.0,96134.0,0.01614156]
[1739025815306,0.68777189,96135.0,96134.0,0.001]
[1739025815526,0.156059,96117.0,96102.0,0.0001068]
[1739025815873,0.26640265,96117.0,96102.0,0.0001068]
[1739025816488,0.156064,96114.0,96113.0,0.09330858]
[1739025816712,0.25856765,96114.0,96113.0,0.09330858]
[1739025818393,0.10250365,96114.0,96102.0,0.0001068]
[1739025818595,0.15608,96104.0,96102.0,0.0001068]
[1739025818820,0.25858365,96104.0,96102.0,0.0001068]
[1739025819518,0.25858365,96104.0,96103.0,0.0021068]
[1739025819933,0.10250365,96104.0,96103.0,0.00256092]
[1739025820271,0.10250365,96104.0,96103.0,0.01430835]
[1739025820471,0.10250365,96104.0,96103.0,0.01530835]
[1739025821106,0.10250365,96104.0,96103.0,0.17139035]
[1739025821315,0.10250365,96104.0,96103.0,0.16839035]
[1739025821517,0.10250365,96104.0,96103.0,0.16939035]
[1739025821722,0.10250365,96104.0,96103.0,0.17139035]
[1739025821935,0.156061,96116.0,96108.0,0.156073]
[1739025822129,0.25856765,96115.0,96108.0,0.156073]
[1739025822608,0.10250365,96115.0,96109.0,0.01174743]
[1739025822809,0.10250365,96115.0,96105.0,0.208103]
[1739025823201,0.10250365,96115.0,96106.0,0.156076]
[1739025823426,0.1840799,96115.0,96108.0,0.001]
[1739025823948,0.10750365,96115.0,96109.0,0.01174743]
[1739025824144,0.10850365,96115.0,96109.0,0.01174743]
[1739025824385,0.156064,96114.0,96109.0,0.01174743]
[1739025824585,0.10250365,96113.0,96109.0,0.01174743]
[1739025824806,0.10250365,96113.0,96107.0,0.156075]
[1739025824944,0.10250365,96113.0,96110.0,0.01174743]
[1739025825147,0.10250365,96113.0,96107.0,0.156075]
[1739025825350,0.10250365,96113.0,96111.0,0.01174743]
[1739025825549,0.10250365,96113.0,96107.0,0.156075]
[1739025825794,0.10350365,96113.0,96112.0,0.01181943]
[1739025825997,0.10350365,96113.0,96109.0,0.156072]
[1739025826256,0.10250365,96113.0,96112.0,0.01181943]
[1739025826435,0.10250365,96113.0,96107.0,0.2081]
[1739025826436,0.10250365,96113.0,96103.0,0.00056092]
[1739025826637,0.10450365,96113.0,96112.0,0.16788643]
[1739025826811,0.10450365,96113.0,96112.0,0.156067]
[1739025827014,0.003,96113.0,96112.0,0.16788643]
[1739025827215,0.002,96113.0,96112.0,0.16788643]
[1739025827717,0.01148105,96123.0,96112.0,0.01181943]
[1739025827926,0.10250365,96122.0,96117.0,0.156059]
[1739025828152,0.10250365,96122.0,96116.0,0.156061]
[1739025828510,0.10250365,96122.0,96117.0,0.01181943]
[1739025828817,0.10250365,96122.0,96116.0,0.156061]
[1739025828818,0.10250365,96122.0,96116.0,0.15606]
[1739025829025,0.10250365,96122.0,96118.0,0.01181943]
[1739025829248,0.10250365,96122.0,96117.0,0.156059]
[1739025829447,0.10250365,96122.0,96119.0,0.01181943]
[1739025829651,0.10750365,96122.0,96117.0,0.156059]
[1739025830196,0.10750365,96122.0,96118.0,0.01181943]
[1739025830414,0.10850365,96122.0,96118.0,0.01181943]
[1739025830612,0.10750365,96122.0,96118.0,0.01181943]
[1739025830986,0.10350365,96122.0,96118.0,0.01181943]
[1739025831195,0.10850365,96122.0,96118.0,0.156057]
[1739025831397,0.10850365,96122.0,96119.0,0.01181943]
[1739025831721,0.10350365,96122.0,96119.0,0.01181943]
[1739025832059,0.10850365,96122.0,96119.0,0.01181943]
[1739025832461,0.10350365,96122.0,96119.0,0.01181943]
[1739025832738,0.10450365,96122.0,96119.0,0.01181943]
[1739025832878,0.10750365,96122.0,96119.0,0.001]
[1739025833082,0.10750365,96122.0,96120.0,0.01181943]
[1739025833321,0.10850365,96122.0,96119.0,0.001]
[1739025833893,0.10750365,96122.0,96119.0,0.001]
[1739025834090,0.10250365,96122.0,96112.0,0.0001068]
[1739025834436,0.10850365,96122.0,96121.0,0.156053]
[1739025834650,0.10750365,96122.0,96121.0,0.156053]
[1739025834994,0.10250365,96122.0,96121.0,0.16787243]
[1739025835203,0.10250365,96122.0,96121.0,0.01181943]
[1739025835204,0.003,96122.0,96121.0,0.01181943]
[1739025835374,0.003,96122.0,96121.0,0.156053]
[1739025835629,0.003,96122.0,96121.0,0.16789289]
[1739025835862,0.00022428,96135.0,96121.0,0.01183989]
[1739025836016,0.10250365,96133.0,96130.0,0.156037]
[1739025836265,0.10250365,96133.0,96131.0,0.156036]
[1739025836414,0.10250365,96133.0,96131.0,0.16787589]
[1739025837501,0.10350365,96133.0,96131.0,0.16787589]
[1739025838035,0.10450365,96133.0,96131.0,0.16887589]
[1739025838290,0.10950365,96133.0,96131.0,0.16987589]
[1739025839331,0.10950365,96133.0,96132.0,0.156035]
[1739025839932,0.10950365,96133.0,96132.0,0.16787489]
[1739025840351,0.10250365,96133.0,96132.0,0.16787489]
[1739025840550,0.10850365,96133.0,96132.0,0.01383989]
[1739025844170,0.10350365,96133.0,96132.0,0.01283989]
[1739025844462,0.10250365,96133.0,96132.0,0.01283989]
[1739025844647,0.26453665,96133.0,96132.0,0.01383989]
[1739025844887,0.26453665,96133.0,96132.0,0.01283989]
[1739025845035,0.25953665,96133.0,96132.0,0.01283989]
[1739025845231,0.43541714,96133.0,96132.0,0.002]
[1739025849865,0.38753665,96133.0,96132.0,0.002]
[1739025853286,0.26453665,96133.0,96132.0,0.002]
[1739025855070,0.26453665,96133.0,96132.0,0.0021068]
[1739025861973,0.10850365,96133.0,96132.0,0.0139321]
[1739025862122,0.26453665,96133.0,96132.0,0.0021068]
[1739025862538,0.26453665,96133.0,96132.0,0.0139321]
[1739025862737,0.26453665,96133.0,96132.0,0.0021068]
[1739025862940,0.26453665,96133.0,96132.0,0.0139321]
[1739025863108,0.26453665,96133.0,96132.0,0.0021068]
[1739025863333,0.26453665,96133.0,96132.0,0.0139321]
[1739025864187,0.33450494,96133.0,96132.0,0.0021068]
[1739025866355,0.10850365,96133.0,96132.0,0.0021068]
[1739025866798,0.10850365,96133.0,96132.0,0.01392942]
[1739025867210,0.10850365,96133.0,96132.0,0.16996442]
[1739025867388,0.10850365,96133.0,96132.0,0.24986442]
[1739025874862,0.10850365,96133.0,96132.0,0.16996442]
[1739025879162,0.10850365,96133.0,96132.0,0.01392942]
[1739025880759,0.10850365,96133.0,96132.0,0.0021068]
[1739025881299,0.10850365,96133.0,96132.0,0.1581418]
[1739025881767,0.10850365,96133.0,96132.0,0.16994445]
[1739025889998,0.006,96133.0,96132.0,0.24988464]
[1739025890129,0.006,96133.0,96132.0,0.29644445]
[1739025890990,0.005,96133.0,96132.0,0.29544445]
[1739025891307,0.005,96133.0,96132.0,0.30044445]
[1739025891904,0.00022428,96135.0,96132.0,0.15040945]
[1739025892105,0.00022428,96135.0,96133.0,0.157073]
[1739025892434,0.00022428,96135.0,96133.0,0.1688213]
[1739025892836,0.00022428,96135.0,96133.0,0.1677813]
[1739025893860,0.00022428,96135.0,96133.0,0.1757813]
[1739025894783,0.00022428,96135.0,96133.0,0.1787813]
[1739025895415,0.00022428,96135.0,96133.0,0.1817813]
[1739025895623,0.00022428,96135.0,96133.0,0.1737813]
[1739025895979,0.00022428,96135.0,96133.0,0.1767813]
[1739025896588,0.00022428,96135.0,96133.0,0.1677813]
[1739025896783,0.00022428,96135.0,96133.0,0.1707813]
[1739025896985,0.00022428,96135.0,96133.0,0.1737813]
[1739025897589,0.10272793,96134.0,96133.0,0.1737813]
[1739025897863,0.10272793,96134.0,96133.0,0.1707813]
[1739025898189,0.10272793,96134.0,96133.0,0.1737813]
[1739025898477,0.10272793,96134.0,96133.0,0.1707813]
[1739025898893,0.10272793,96134.0,96133.0,0.1677813]
[1739025899129,0.10272793,96134.0,96133.0,0.1707813]
[1739025899838,0.10272793,96134.0,96133.0,0.1687813]
[1739025900093,0.10272793,96134.0,96133.0,0.1697813]
[1739025900306,0.11406259,96134.0,96133.0,0.1697813]
[1739025900736,0.10272793,96134.0,96133.0,0.1687813]
[1739025900927,0.10272793,96134.0,96133.0,0.1697813]
[1739025902008,0.10272793,96134.0,96133.0,0.0137483]
[1739025902215,0.25875993,96134.0,96133.0,0.0137483]
[1739025902421,0.25875993,96134.0,96133.0,0.002]
[1739025902628,0.25875993,96134.0,96133.0,0.0136898]
[1739025902828,0.25875993,96134.0,96133.0,0.002]
[1739025903035,0.40831499,96134.0,96133.0,0.002]
[1739025904279,0.35588614,96134.0,96133.0,0.001]
[1739025904504,0.33495993,96134.0,96133.0,0.001]
[1739025904714,0.33595993,96134.0,96133.0,0.002]
[1739025904920,0.33595993,96134.0,96133.0,0.001]
[1739025905365,0.34095993,96134.0,96133.0,0.002]
[1739025905747,0.33595993,96134.0,96133.0,0.001]
[1739025905949,0.156033,96133.0,96132.0,0.0001068]
[1739025906157,0.25853665,96133.0,96132.0,0.0001068]
[1739025907314,0.25853665,96133.0,96132.0,0.0011068]
[1739025907550,0.25953665,96133.0,96132.0,0.0011068]
[1739025907750,0.3620403,96133.0,96132.0,0.0011068]
[1739025908338,0.3670403,96133.0,96132.0,0.0021068]
[1739025908790,0.3620403,96133.0,96132.0,0.0011068]
[1739025908966,0.4851403,96133.0,96132.0,0.0011068]
[1739025909170,0.4901403,96133.0,96132.0,0.0011068]
[1739025909369,0.4911403,96133.0,96132.0,0.0021068]
[1739025916891,0.4911403,96133.0,96132.0,1e-08]
[1739025917096,0.156066,96113.0,96103.0,0.0001068]
[1739025917300,0.26640965,96113.0,96112.0,0.00056092]
[1739025918138,0.28697733,96113.0,96112.0,0.00056092]
[1739025918346,0.28797733,96113.0,96112.0,0.00056092]
[1739025918543,0.36595166,96113.0,96112.0,0.00056092]
[1739025919073,0.36495166,96113.0,96112.0,0.00056092]
[1739025919255,0.34938398,96113.0,96112.0,0.00156092]
[1739025919875,0.35838398,96113.0,96112.0,0.00256092]
[1739025922683,0.28295737,96113.0,96112.0,0.00256092]
[1739025922860,0.29079737,96113.0,96112.0,0.00256092]
[1739025924055,0.28040965,96113.0,96112.0,0.00256092]
[1739025927374,0.43040965,96113.0,96112.0,0.00256092]
[1739025929291,0.47690965,96113.0,96112.0,0.00256092]
[1739025929496,0.56825339,96113.0,96112.0,0.00256092]
[1739025930763,0.67955339,96113.0,96112.0,0.00256092]
[1739025930998,0.30608,96104.0,96103.0,0.0001068]
[1739025931200,0.40858365,96104.0,96103.0,0.0001068]
[1739025932619,0.41858365,96104.0,96103.0,0.0001068]
[1739025932894,0.5300873,96104.0,96103.0,0.0011068]
[1739025933348,0.5210873,96104.0,96103.0,0.0001068]
[1739025933562,0.5300873,96104.0,96103.0,0.0011068]
[1739025933940,0.5210873,96104.0,96103.0,0.0001068]
[1739025934140,0.54033508,96104.0,96103.0,0.0001068]
[1739025934544,0.54933508,96104.0,96103.0,0.0001068]
[1739025944958,0.29467143,96104.0,96103.0,0.0001068]
[1739025945996,0.28567143,96104.0,96103.0,0.0001068]
[1739025946353,0.28567143,96104.0,96103.0,0.0011068]
[1739025946551,0.27667143,96104.0,96103.0,0.0001068]
[1739025946843,0.28567143,96104.0,96103.0,0.0001068]
[1739025947046,0.36485917,96104.0,96103.0,0.0011068]
[1739025947259,0.35585917,96104.0,96103.0,0.0011068]
[1739025947613,0.36485917,96104.0,96103.0,0.0011068]
[1739025947817,0.29467143,96104.0,96103.0,0.0011068]
[1739025949968,0.29467143,96104.0,96103.0,0.01115565]
[1739025950378,0.29467143,96104.0,96103.0,0.0011068]
[1739025951357,0.13859143,96104.0,96103.0,0.0011068]
[1739025951986,0.02584,96104.0,96103.0,0.2339888]
[1739025952187,0.02584,96104.0,96103.0,0.29123765]
[1739025952803,0.018,96104.0,96103.0,0.29123765]
[1739025953008,0.009,96104.0,96103.0,0.29023765]
[1739025953273,0.00022428,96112.0,96109.0,0.208096]
[1739025953470,0.10250365,96111.0,96103.0,0.13615565]
[1739025953592,0.00022428,96112.0,96108.0,0.208098]
[1739025953803,0.00022428,96112.0,96111.0,0.232869]
[1739025954193,0.00022428,96112.0,96111.0,0.24291785]
[1739025954414,0.00922428,96112.0,96111.0,0.24291785]
[1739025954865,0.00922428,96112.0,96111.0,0.08684885]
[1739025955873,0.01822428,96112.0,96111.0,0.08684885]
[1739025956072,0.00922428,96112.0,96111.0,0.08684885]
[1739025956300,0.00022428,96112.0,96111.0,0.08684885]
[1739025956457,0.00522428,96112.0,96111.0,0.08684885]
[1739025961872,0.00522428,96112.0,96111.0,0.24291785]
[1739025965434,0.00522428,96112.0,96111.0,0.08684885]
[1739025968949,0.00522428,96112.0,96111.0,0.24291785]
[1739025970621,0.00522428,96112.0,96111.0,0.08684885]
[1739025971265,0.00522428,96112.0,96111.0,0.24291785]
[1739025974340,0.00522428,96112.0,96111.0,0.08684885]
[1739025975353,0.00522428,96112.0,96111.0,0.08695565]
[1739025976311,0.00522428,96112.0,96111.0,0.24302465]
[1739025979792,0.00322428,96112.0,96111.0,0.24302465]
[1739025980192,0.00322428,96112.0,96111.0,0.24602465]
[1739025981037,0.00022428,96112.0,96111.0,0.08995565]
[1739025981168,0.00022428,96112.0,96111.0,0.01315565]
[1739025981370,0.00022428,96112.0,96111.0,0.01715565]
[1739025981780,0.00022428,96112.0,96111.0,0.01315565]
[1739025982178,0.00022428,96112.0,96111.0,0.01715565]
[1739025982388,0.00022428,96112.0,96111.0,0.17322465]
[1739025982804,0.00022428,96112.0,96111.0,0.17022465]
[1739025983006,0.00022428,96112.0,96111.0,0.16622465]
[1739025983214,0.00022428,96112.0,96111.0,0.16922465]
[1739025983740,0.00022428,96112.0,96111.0,0.16622465]
[1739025984349,0.00022428,96112.0,96111.0,0.17222465]
[1739025984898,0.00022428,96112.0,96111.0,0.16922465]
[1739025985033,0.00022428,96112.0,96111.0,0.17222465]
[1739025985808,0.00022428,96112.0,96111.0,0.01615565]
[1739025986637,0.00022428,96112.0,96111.0,0.01315565]
[1739025987041,0.00022428,96112.0,96111.0,0.01615565]
[1739025987963,0.00022428,96112.0,96111.0,0.01315565]
[1739025988167,0.00022428,96112.0,96111.0,0.01615565]
[1739025988874,0.00022428,96112.0,96111.0,0.17222465]
[1739025990723,0.00022428,96112.0,96111.0,0.01615565]
[1739025991305,0.00022428,96112.0,96111.0,0.17222465]
[1739025993290,0.10272793,96112.0,96111.0,0.01615565]
[1739025994247,0.10272793,96112.0,96111.0,0.0031068]
[1739025994442,0.10272793,96112.0,96111.0,0.01297165]
[1739025994642,0.25879493,96112.0,96111.0,0.0051068]
[1739025994873,0.25879493,96112.0,96111.0,0.01297165]
[1739025995109,0.25879493,96112.0,96111.0,0.0031068]
[1739025995262,0.25879493,96112.0,96111.0,0.0001068]
[1739025995663,0.25879493,96112.0,96111.0,0.0031068]
[1739025996017,0.28068469,96112.0,96111.0,0.0031068]
[1739025996255,0.28068469,96112.0,96111.0,0.0001068]
[1739025996388,0.28168469,96112.0,96111.0,0.0011068]
[1739025997527,0.32808469,96112.0,96111.0,0.0011068]
[1739025997741,0.40728469,96112.0,96111.0,0.0011068]
[1739025998487,0.55728469,96112.0,96111.0,0.0011068]
[1739025999104,0.57768344,96112.0,96111.0,0.0011068]
[1739025999486,0.57668344,96112.0,96111.0,0.0001068]
[1739025999907,0.59468344,96112.0,96111.0,0.0021068]
[1739026000136,0.58568344,96112.0,96111.0,0.0011068]
[1739026000342,0.53439493,96112.0,96111.0,0.0011068]
[1739026000503,0.54339493,96112.0,96111.0,0.0011068]
[1739026000667,0.42563493,96112.0,96111.0,0.0011068]
[1739026001700,0.43463493,96112.0,96111.0,0.0021068]
[1739026002726,0.42563493,96112.0,96111.0,0.0011068]
[1739026002904,0.52813858,96112.0,96111.0,0.0011068]
[1739026003434,0.42563493,96112.0,96111.0,0.0011068]
[1739026003580,0.43463493,96112.0,96111.0,0.0011068]
[1739026028236,0.42679493,96112.0,96111.0,0.0011068]
[1739026028429,0.43463493,96112.0,96111.0,0.0011068]
[1739026028602,0.42679493,96112.0,96111.0,0.0011068]
[1739026028919,0.43463493,96112.0,96111.0,0.0011068]
[1739026029872,0.12072793,96112.0,96111.0,0.0011068]
[1739026030069,0.12856793,96112.0,96111.0,0.0011068]
[1739026030271,0.28463493,96112.0,96111.0,0.01099392]
[1739026030479,0.28463493,96112.0,96111.0,0.0011068]
[1739026031112,0.27563493,96112.0,96111.0,0.0011068]
[1739026031661,0.28463493,96112.0,96111.0,0.0021068]
[1739026038214,0.12856793,96112.0,96111.0,0.1581758]
[1739026038423,0.01822428,96112.0,96111.0,0.29693573]
[1739026039147,0.00922428,96112.0,96111.0,0.29593573]
[1739026039590,0.00022428,96112.0,96111.0,0.29493573]
[1739026039781,0.00022428,96112.0,96111.0,0.29593573]
[1739026045632,0.00022428,96112.0,96111.0,0.29493573]
[1739026045845,0.00122428,96112.0,96111.0,0.30093573]
[1739026046045,0.00222428,96112.0,96111.0,0.30793573]
[1739026046243,0.00122428,96112.0,96111.0,0.30193573]
[1739026046697,0.00222428,96112.0,96111.0,0.30993573]
[1739026047491,0.00122428,96112.0,96111.0,0.30293573]
[1739026047702,0.00122428,96112.0,96111.0,0.30793573]
[1739026047900,0.00022428,96112.0,96111.0,0.29993573]
[1739026048123,0.00122428,96112.0,96111.0,0.30093573]
[1739026048323,0.00222428,96112.0,96111.0,0.30693573]
[1739026048557,0.00222428,96112.0,96111.0,0.30093573]
[1739026048998,0.00222428,96112.0,96111.0,0.30493573]
[1739026063759,0.00122428,96112.0,96111.0,0.29893573]
[1739026064163,0.00222428,96112.0,96111.0,0.30393573]
[1739026064387,0.00122428,96112.0,96111.0,0.29993573]
[1739026064809,0.00122428,96112.0,96111.0,0.30393573]
[1739026066709,0.00122428,96112.0,96111.0,0.33646612]
[1739026067544,0.00122428,96112.0,96111.0,0.30393573]
[1739026075778,0.00122428,96112.0,96111.0,0.17503573]
[1739026075982,0.00122428,96112.0,96111.0,0.01896673]
[1739026076188,0.156059,96117.0,96111.0,0.01896673]
[1739026076390,0.10250365,96116.0,96111.0,0.01901213]
[1739026076833,0.156067,96112.0,96111.0,0.0091522]
[1739026076989,0.25857065,96112.0,96111.0,0.0041522]
[1739026077162,0.25957065,96112.0,96111.0,0.0091522]
[1739026077802,0.25857065,96112.0,96111.0,0.0001522]
[1739026078140,0.26657065,96112.0,96111.0,0.0011522]
[1739026078500,0.25857065,96112.0,96111.0,0.0001522]
[1739026078699,0.26557065,96112.0,96111.0,0.0011522]
[1739026079511,0.25857065,96112.0,96111.0,0.0001522]
[1739026079707,0.26757065,96112.0,96111.0,0.0011522]
[1739026080584,0.27657065,96112.0,96111.0,0.0021522]
[1739026081143,0.25857065,96112.0,96111.0,0.0001522]
[1739026081437,0.27657065,96112.0,96111.0,0.0021522]
[1739026081731,0.27679493,96112.0,96111.0,0.0021522]
[1739026086719,0.35529493,96112.0,96111.0,0.0021522]
[1739026087353,0.37506475,96112.0,96111.0,0.0021522]
[1739026088071,0.35529493,96112.0,96111.0,0.0021522]
[1739026094430,0.28463493,96112.0,96111.0,0.0021522]
[1739026096296,0.36313493,96112.0,96111.0,0.0021522]
[1739026099836,0.35413493,96112.0,96111.0,0.0011522]
[1739026100063,0.36313493,96112.0,96111.0,0.0011522]
[1739026100760,0.35413493,96112.0,96111.0,0.0011522]
[1739026101014,0.35413493,96112.0,96111.0,0.0001522]
[1739026101247,0.35413493,96112.0,96111.0,0.0011522]
[1739026101473,0.36313493,96112.0,96111.0,0.0011522]
[1739026101919,0.37213493,96112.0,96111.0,0.0011522]
[1739026103605,0.29363493,96112.0,96111.0,0.0011522]
[1739026103778,0.28579493,96112.0,96111.0,0.0011522]
[1739026103985,0.29363493,96112.0,96111.0,0.0011522]
[1739026105373,0.32418518,96112.0,96111.0,0.0011522]
[1739026107123,0.29363493,96112.0,96111.0,0.0011522]
[1739026108804,0.5492653,96112.0,96111.0,0.0011522]
[1739026109146,0.6579653,96112.0,96111.0,0.0011522]
[1739026109545,0.6479653,96112.0,96111.0,0.0011522]
[1739026109931,0.6389653,96112.0,96111.0,0.0011522]
[1739026110158,0.6479653,96112.0,96111.0,0.0011522]
[1739026110575,0.74146895,96112.0,96111.0,0.0001522]
[1739026110783,0.72346895,96112.0,96111.0,0.0001522]
[1739026110980,0.74146895,96112.0,96111.0,0.0011522]
[1739026113350,1.06156895,96112.0,96111.0,0.0011522]
[1739026113856,1.08156895,96112.0,96111.0,2e-07]
[1739026114270,0.381782,96103.0,96102.0,6e-07]
[1739026114478,0.63798999,96103.0,96102.0,0.00045444]
[1739026114651,0.66741452,96103.0,96102.0,4.4e-07]
[1739026114857,0.99751452,96103.0,96102.0,4.4e-07]
[1739026115809,1.00651452,96103.0,96102.0,0.00100044]
[1739026116840,0.83638565,96103.0,96102.0,0.00100044]
[1739026117012,0.84538565,96103.0,96102.0,0.00100044]
[1739026117836,0.92475955,96103.0,96102.0,0.00100044]
[1739026119117,0.93475955,96103.0,96102.0,0.00100044]
[1739026119283,0.306085,96101.0,96100.0,4e-05]
[1739026119484,0.59272267,96101.0,96100.0,4e-05]
[1739026121653,0.61072267,96101.0,96100.0,4e-05]
[1739026125053,0.93082267,96101.0,96100.0,4e-05]
[1739026125461,0.93866267,96101.0,96100.0,4e-05]
[1739026125886,0.90945683,96101.0,96100.0,4e-05]
[1739026127631,0.8800323,96101.0,96100.0,4e-05]
[1739026128007,0.9579323,96101.0,96100.0,4e-05]
[1739026130012,0.9579323,96101.0,96100.0,0.0001468]
[1739026132114,0.8800323,96101.0,96100.0,0.0001468]
[1739026133954,0.8491923,96101.0,96100.0,0.0001468]
[1739026134153,0.8570323,96101.0,96100.0,0.0001468]
[1739026134798,0.8491923,96101.0,96100.0,0.0001468]
[1739026134987,0.8570323,96101.0,96100.0,0.0001468]
[1739026135436,0.74668865,96101.0,96100.0,0.0001468]
[1739026135641,0.75452865,96101.0,96100.0,0.0001468]
[1739026136039,0.60452865,96101.0,96100.0,0.0001468]
[1739026136669,0.75452865,96101.0,96100.0,0.0001468]
[1739026141761,0.43442865,96101.0,96100.0,0.0001468]
[1739026141962,0.41642865,96101.0,96100.0,0.0001468]
[1739026142417,0.42542865,96101.0,96100.0,0.0001468]
[1739026143381,0.43442865,96101.0,96100.0,0.0001468]
[1739026148370,0.5369323,96101.0,96100.0,0.0001468]
[1739026151036,0.5189323,96101.0,96100.0,0.0001468]
[1739026151415,0.5369323,96101.0,96100.0,0.0001468]
[1739026151784,0.43442865,96101.0,96100.0,0.0001468]
[1739026151987,0.44342865,96101.0,96100.0,0.0001468]
[1739026152794,0.43442865,96101.0,96100.0,0.0001468]
[1739026152996,0.44342865,96101.0,96100.0,0.0001468]
[1739026155177,0.29342865,96101.0,96100.0,0.0001468]
[1739026155689,0.3959323,96101.0,96100.0,0.0001468]
[1739026156538,0.28558865,96101.0,96100.0,0.0001468]
[1739026156964,0.29342865,96101.0,96100.0,0.0825468]
[1739026157185,0.29342865,96101.0,96100.0,0.1309468]
[1739026157597,0.12050365,96101.0,96100.0,0.1309468]
[1739026157788,0.11034365,96101.0,96100.0,0.1309468]
[1739026157974,0.26642865,96101.0,96100.0,0.14092282]
[1739026158179,0.27542865,96101.0,96100.0,0.14092282]
[1739026158775,0.28442865,96101.0,96100.0,0.14092282]
[1739026159604,0.29342865,96101.0,96100.0,0.14092282]
[1739026160078,0.28442865,96101.0,96100.0,0.14092282]
[1739026160296,0.29342865,96101.0,96100.0,0.14092282]
[1739026161261,0.13734365,96101.0,96100.0,0.14092282]